bitfinex/quotes_ETHUSD_20260208
["timestamp","ask_amount","ask_price","bid_price","bid_amount"]
[1770558440583,1.17650657,2125.0,2124.2,0.9359701]
[1770558440894,4.70539286,2125.3,2124.4,0.9359701]
[1770558441089,1.17628141,2125.4,2124.6,0.9359701]
[1770558442212,1.17628141,2125.4,2124.7,3.2891]
[1770558442387,2.08001688,2125.4,2124.7,3.2891]
[1770558443714,1.17628141,2125.4,2124.8,0.9359701]
[1770558443913,1.17628141,2125.4,2124.7,3.2891]
[1770558444091,0.90373547,2125.4,2124.7,3.2891]
[1770558444809,0.90373547,2125.4,2124.7,3.07046213]
[1770558445414,0.001,2125.5,2124.7,4.00643223]
[1770558445915,0.001,2125.2,2124.7,3.07156213]
[1770558446303,0.90473547,2125.2,2124.7,0.0011]
[1770558446689,0.90373547,2124.9,2124.5,0.0011]
[1770558447009,0.90373547,2124.9,2123.9,0.0011]
[1770558447190,0.90373547,2124.9,2124.0,3.07046213]
[1770558448020,4.0,2124.8,2124.0,3.07046213]
[1770558448217,4.90373547,2124.8,2124.0,3.07046213]
[1770558448702,1.1766367,2124.7,2124.1,0.9359701]
[1770558449088,1.1766367,2124.7,2124.2,4.00643223]
[1770558449309,1.1766367,2124.7,2124.2,0.9359701]
[1770558449499,1.1766367,2124.7,2124.3,3.07046213]
[1770558450114,1.1766367,2124.7,2124.0,0.9359701]
[1770558450320,1.1766367,2124.7,2123.9,0.0011]
[1770558452300,1.1766367,2124.7,2123.9,0.9370701]
[1770558454997,0.90373547,2124.5,2123.9,0.0011]
[1770558455395,3.84458838,2124.6,2123.9,0.0011]
[1770558455818,0.90373547,2124.5,2123.9,0.0011]
[1770558456140,3.8,2124.4,2123.9,0.0011]
[1770558457133,1.17685825,2124.3,2123.6,0.9370701]
[1770558457934,1.17685825,2124.3,2124.1,0.0011]
[1770558458141,1.17685825,2124.3,2123.9,0.0011]
[1770558460729,0.04458838,2124.1,2123.6,0.0011]
[1770558461909,1.17702448,2124.0,2123.6,0.0011]
[1770558464018,0.90373547,2124.4,2123.6,0.0011]
[1770558464019,1.17678203,2124.5,2123.7,0.9359701]
[1770558464235,4.0,2124.4,2123.7,0.9359701]
[1770558465553,4.70638029,2124.8,2123.9,0.93170911]
[1770558465554,1.17658132,2124.8,2123.9,0.93170911]
[1770558465758,4.0,2124.6,2123.9,0.93170911]
[1770558466160,1.17674746,2124.5,2123.9,0.93170911]
[1770558466325,5.17672902,2124.6,2124.0,0.93170911]
[1770558468639,1.17672902,2124.6,2124.0,0.93170911]
[1770558468844,5.17672902,2124.6,2124.0,0.93170911]
[1770558469464,4.0,2124.6,2124.1,0.93170911]
[1770558469830,4.0,2124.6,2124.1,0.93280911]
[1770558470159,0.001,2124.4,2124.1,0.93280911]
[1770558471737,0.001,2124.4,2124.1,0.0011]
[1770558472337,4.001,2124.4,2124.1,0.0011]
[1770558472943,3.821,2125.2,2124.3,0.93170911]
[1770558473161,1.17736024,2125.2,2124.3,0.93170911]
[1770558473862,0.001,2125.2,2124.3,0.93170911]
[1770558474050,1.17736379,2125.2,2124.3,0.93170911]
[1770558474863,1.17736379,2125.2,2124.3,0.71306755]
[1770558475160,0.001,2125.2,2124.5,0.93170911]
[1770558477872,0.001,2125.2,2124.6,0.93170911]
[1770558480171,0.98783449,2124.9,2124.1,0.0011]
[1770558480357,1.13698146,2125.1,2124.1,0.93280911]
[1770558480541,1.18156984,2125.1,2124.1,0.93280911]
[1770558481376,0.04674697,2125.1,2124.1,0.93280911]
[1770558481668,0.04674697,2125.1,2124.3,0.93170911]
[1770558482041,0.04674697,2125.1,2124.3,0.93280911]
[1770558482042,1.03458146,2125.1,2124.3,0.93280911]
[1770558482246,1.17747058,2125.0,2124.3,0.93280911]
[1770558482551,1.17747058,2125.0,2124.4,0.93170911]
[1770558482900,0.001,2125.0,2124.4,0.93170911]
[1770558484569,0.001,2125.0,2124.6,0.93170911]
[1770558488069,0.001,2125.0,2124.7,0.93170911]
[1770558488268,0.001,2125.2,2124.8,0.93170911]
[1770558488979,0.6,2125.0,2124.8,0.93170911]
[1770558489157,0.001,2125.2,2124.8,0.93170911]
[1770558489351,0.001,2125.2,2124.6,2.10839569]
[1770558489752,0.001,2125.2,2124.6,0.93170911]
[1770558490780,0.001,2125.2,2124.6,2.10839143]
[1770558491159,0.001,2125.2,2124.7,0.93170911]
[1770558493979,0.6,2125.0,2124.7,0.93170911]
[1770558495057,0.601,2125.0,2124.7,0.93170911]
[1770558495884,0.00829452,2429.0,2124.7,0.93170911]
[1770558495885,0.001,2125.7,2124.9,0.91849938]
[1770558496565,0.001,2125.7,2125.1,0.91849938]
[1770558496773,0.001,2125.7,2124.7,0.91849938]
[1770558496774,0.96807005,2125.7,2124.7,0.91849938]
[1770558498761,1.1761385,2125.6,2124.7,0.91849938]
[1770558498961,0.04674697,2125.5,2124.7,0.91849938]
[1770558499181,0.001,2125.7,2124.9,0.91849938]
[1770558499385,0.001,2125.7,2125.2,0.91849938]
[1770558501108,0.32220702,2126.3,2125.5,0.91849938]
[1770558502279,1.49796621,2126.3,2125.5,0.91849938]
[1770558502684,0.32220702,2126.3,2125.5,0.91849938]
[1770558503181,0.32220702,2126.3,2125.7,0.91849938]
[1770558503375,1.49796116,2126.3,2125.7,0.91849938]
[1770558503691,0.32220702,2126.3,2125.7,0.91849938]
[1770558504796,0.32220702,2126.3,2125.7,0.74458429]
[1770558504999,2.43811238,2127.3,2126.0,0.91849938]
[1770558505211,5.66815217,2127.2,2126.1,1.1758619]
[1770558505506,0.92032308,2126.6,2125.5,1.17614443]
[1770558505809,3.33474697,2126.5,2125.5,0.91849938]
[1770558505984,0.92032308,2126.4,2125.3,1.17625575]
[1770558506187,0.04674697,2126.3,2125.4,1.17624713]
[1770558506389,0.04674697,2126.3,2125.4,2.09474651]
[1770558507302,1.1758066,2126.2,2125.5,0.91849938]
[1770558508105,1.1758066,2126.2,2125.6,0.0011]
[1770558509675,1.1758066,2126.2,2125.6,0.91959938]
[1770558510683,0.96707005,2126.1,2125.4,0.0011]
[1770558511020,0.96707005,2126.1,2124.7,2.09511798]
[1770558511508,0.92032308,2125.9,2124.7,2.09511798]
[1770558511677,3.288,2125.8,2124.7,2.09511798]
[1770558512012,3.288,2125.8,2124.8,0.91849938]
[1770558513782,1.17608317,2125.7,2125.0,0.91849938]
[1770558517600,1.17608317,2125.7,2124.8,2.09504657]
[1770558517999,1.17608317,2125.7,2124.8,0.91849938]
[1770558518209,2.09640625,2125.7,2124.7,1.17660479]
[1770558518410,2.09640625,2125.7,2124.6,4.70769464]
[1770558518595,2.09640625,2125.7,2124.8,1.17657829]
[1770558518988,2.09640625,2125.7,2124.7,0.91849938]
[1770558519190,1.17608317,2125.7,2124.7,0.91849938]
[1770558519498,3.288,2125.6,2124.7,0.91849938]
[1770558520708,3.288,2125.6,2125.2,0.0011]
[1770558521212,1.17719383,2125.5,2125.2,0.0011]
[1770558523593,3.289,2125.5,2125.2,0.0011]
[1770558527521,4.46523721,2125.5,2125.2,0.0011]
[1770558536431,1.13273156,2125.4,2125.0,0.0011]
[1770558536804,4.46523721,2125.5,2125.0,0.0011]
[1770558538732,4.46523721,2125.5,2125.1,0.99490227]
[1770558538906,4.46523721,2125.5,2125.0,0.0011]
[1770558540020,5.5512218,2125.5,2125.0,0.0011]
[1770558540220,1.08598459,2125.4,2124.6,0.0011]
[1770558540536,1.08598459,2125.2,2124.6,0.0011]
[1770558540736,4.46541522,2125.1,2124.6,0.0011]
[1770558541512,9.37139981,2125.1,2124.6,0.0011]
[1770558542236,9.37139981,2125.1,2124.5,0.0011]
[1770558542740,1.17721973,2125.5,2124.6,0.99490227]
[1770558542959,4.46621973,2125.5,2124.6,0.99490227]
[1770558544334,4.46621973,2125.5,2124.9,0.99490227]
[1770558544534,0.001,2125.3,2124.9,0.99490227]
[1770558547631,0.001,2125.3,2124.6,0.99490227]
[1770558547832,0.001,2125.3,2124.5,0.99600227]
[1770558549445,1.08698459,2125.3,2124.5,0.0011]
[1770558549647,0.04674697,2125.2,2124.5,0.0011]
[1770558549828,1.17641522,2125.1,2124.5,0.0011]
[1770558550026,3.289,2125.0,2124.5,0.0011]
[1770558550852,3.289,2125.0,2124.5,0.99600227]
[1770558552050,3.289,2125.0,2124.5,1.17781883]
[1770558552255,3.289,2125.0,2124.6,0.99490227]
[1770558552463,4.46547175,2125.0,2124.6,0.99490227]
[1770558553349,4.46547175,2125.0,2124.5,0.99600227]
[1770558553731,4.46547175,2125.0,2124.5,0.0011]
[1770558556356,4.46547175,2125.0,2124.7,0.0011]
[1770558559359,3.289,2125.0,2124.7,1.34936512]
[1770558560454,0.001,2125.1,2124.7,1.34936512]
[1770558560759,3.29,2125.1,2124.7,1.34936512]
[1770558563551,3.29,2125.1,2124.8,1.34826512]
[1770558565482,4.46641671,2125.1,2124.7,0.0011]
[1770558565975,3.29,2125.1,2124.7,1.34936512]
[1770558566148,4.46645459,2125.1,2124.7,0.0011]
[1770558566346,5.8420869,2125.1,2124.7,0.0011]
[1770558567373,4.46645459,2125.1,2124.7,0.0011]
[1770558567991,4.46645459,2125.1,2124.7,1.34936512]
[1770558568643,4.46645459,2125.1,2124.9,0.0011]
[1770558569555,3.29,2125.1,2124.9,1.34936512]
[1770558569866,3.29,2125.1,2124.9,0.0011]
[1770558571147,4.46641742,2125.1,2124.9,0.0011]
[1770558572465,3.29,2125.1,2124.9,0.0011]
[1770558572947,4.46641708,2125.1,2124.9,0.0011]
[1770558575868,4.46641708,2125.1,2124.9,1.34936512]
[1770558575869,0.001,2125.1,2124.9,1.34936512]
[1770558577163,0.001,2125.1,2125.0,1.34826512]
[1770558577670,0.001,2125.1,2124.9,0.0011]
[1770558578872,0.001,2125.1,2124.9,1.34936512]
[1770558580773,0.001,2125.1,2124.9,0.0011]
[1770558581146,0.001,2125.1,2124.9,1.34936512]
[1770558581345,0.001,2125.1,2125.0,0.0011]
[1770558582464,1.42337928,2125.1,2124.8,0.0011]
[1770558582769,0.001,2125.1,2124.8,0.0011]
[1770558584070,0.001,2125.1,2124.8,1.34936512]
[1770558584286,3.289,2125.0,2124.8,1.34936512]
[1770558585378,3.289,2125.0,2124.8,0.0011]
[1770558586380,4.46548443,2125.0,2124.8,0.0011]
[1770558593192,4.46548443,2125.0,2124.8,1.4384097]
[1770558593793,3.289,2125.0,2124.8,1.4384097]
[1770558593965,0.001,2124.9,2124.8,1.4384097]
[1770558598395,0.001,2124.9,2124.8,0.0011]
[1770558601786,0.001,2124.9,2124.8,1.4384097]
[1770558602125,3.289,2125.0,2124.8,1.4384097]
[1770558602126,0.001,2125.3,2124.9,1.4373097]
[1770558602985,0.001,2125.3,2125.1,1.4373097]
[1770558604924,0.001,2125.3,2124.8,0.0011]
[1770558605097,0.001,2125.2,2124.8,0.0011]
[1770558605712,0.001,2125.2,2125.0,0.0011]
[1770558606111,0.001,2125.1,2125.0,0.0011]
[1770558607707,0.001,2125.1,2125.0,1.4384097]
[1770558607908,0.001,2125.3,2125.1,1.4373097]
[1770558608107,0.001,2125.2,2125.1,1.4373097]
[1770558609130,0.001,2125.3,2125.0,1.4384097]
[1770558609428,0.002,2125.3,2125.0,1.4384097]
[1770558610334,0.001,2125.3,2125.0,1.4384097]
[1770558610834,0.001,2125.2,2125.0,0.0011]
[1770558611023,0.001,2125.2,2125.0,1.4384097]
[1770558615236,0.001,2125.2,2125.0,2.6148781]
[1770558618311,0.001,2125.3,2125.1,1.58863141]
[1770558618531,0.002,2125.3,2125.2,1.29]
[1770558618834,0.001,2125.5,2125.3,1.58863141]
[1770558619038,0.001,2125.5,2125.4,2.87863141]
[1770558619209,0.003,2125.5,2125.4,2.87863141]
[1770558620639,0.003,2125.5,2125.4,1.29]
[1770558622134,0.003,2125.5,2125.4,2.87863141]
[1770558622333,0.003,2125.5,2125.4,1.29]
[1770558624236,0.001,2125.5,2125.4,1.288]
[1770558624441,0.001,2125.5,2125.4,1.278]
[1770558627144,0.001,2125.5,2125.0,0.0011]
[1770558627328,0.001,2125.5,2125.1,1.58863141]
[1770558628250,0.001,2125.5,2125.2,2.78833786]
[1770558628417,0.001,2125.5,2125.3,1.58863141]
[1770558629532,0.001,2125.5,2125.2,1.19970645]
[1770558629932,0.001,2125.3,2125.2,2.78833786]
[1770558631167,0.001,2125.3,2125.2,3.96469773]
[1770558631357,0.001,2125.5,2125.3,1.58863141]
[1770558631530,0.001,2125.5,2125.3,2.78733786]
[1770558631947,0.001,2125.5,2125.3,1.58863141]
[1770558636364,0.001,2125.5,2125.3,2.78733786]
[1770558636560,1.62459334,2126.2,2125.4,1.58863141]
[1770558636872,2.8004196,2126.2,2125.5,1.58863141]
[1770558637438,1.62459334,2126.2,2125.5,1.58863141]
[1770558637859,2.80040702,2126.2,2125.5,1.58863141]
[1770558638238,1.62459334,2126.2,2125.6,2.76476991]
[1770558638960,1.62459334,2126.1,2125.6,1.19770645]
[1770558640247,2.80048674,2126.1,2125.4,2.76484374]
[1770558640445,2.80048674,2126.1,2125.5,1.19770645]
[1770558641150,2.80048674,2126.1,2125.4,2.76484374]
[1770558641349,2.80048674,2126.1,2125.5,1.19770645]
[1770558641547,2.80048674,2126.1,2125.7,0.0011]
[1770558641857,1.62459334,2125.9,2125.7,0.0011]
[1770558644378,1.62459334,2125.8,2125.7,0.0011]
[1770558645961,1.62459334,2125.8,2125.0,0.0011]
[1770558646162,1.62459334,2125.8,2125.1,1.17641372]
[1770558646368,1.62459334,2125.8,2125.1,2.96654893]
[1770558647464,2.95402512,2125.7,2125.1,1.19770645]
[1770558649468,0.001,2126.0,2125.3,1.76884248]
[1770558649646,4.46397303,2125.9,2125.3,1.76884248]
[1770558649846,4.46397303,2125.9,2125.4,1.19770645]
[1770558650043,6.24191498,2125.9,2125.4,1.19770645]
[1770558650248,5.06594195,2125.9,2125.4,1.19770645]
[1770558651246,5.03614195,2125.9,2125.4,1.19770645]
[1770558651446,1.17602784,2125.8,2125.4,1.19770645]
[1770558652058,2.95396979,2125.8,2125.4,1.19770645]
[1770558653771,1.77794195,2125.7,2125.6,0.0011]
[1770558656676,2.95402512,2125.7,2125.6,0.0011]
[1770558657382,2.95402512,2125.7,2125.4,0.0011]
[1770558657549,2.95402512,2125.7,2125.5,1.19770645]
[1770558657749,2.95402512,2125.7,2125.4,0.0011]
[1770558657750,1.22282725,2125.8,2125.4,1.19770645]
[1770558658706,3.288,2125.7,2125.4,1.19770645]
[1770558660274,1.17600013,2125.9,2125.5,1.76884248]
[1770558660478,3.288,2125.6,2125.4,1.19770645]
[1770558660679,3.288,2125.6,2125.4,2.96654893]
[1770558661883,3.288,2125.6,2125.5,1.19770645]
[1770558666390,0.001,2126.0,2125.5,1.76884248]
[1770558666584,2.09129355,2125.9,2125.5,1.76884248]
[1770558669499,1.17691729,2126.0,2125.5,1.76884248]
[1770558669795,2.09129355,2125.9,2125.5,2.94502563]
[1770558670293,0.001,2126.0,2125.5,2.94502563]
[1770558670600,2.09129355,2125.9,2125.5,2.94502563]
[1770558670800,2.09129355,2125.9,2125.5,1.76884248]
[1770558671296,0.001,2126.0,2125.5,1.76884248]
[1770558671487,2.09129355,2125.9,2125.5,1.76884248]
[1770558673796,2.09129355,2125.8,2125.5,1.76884248]
[1770558673967,2.09129355,2125.9,2125.4,1.17731594]
[1770558674170,2.09129355,2125.9,2125.4,1.17734838]
[1770558674400,2.09129355,2125.8,2125.4,1.17734838]
[1770558674717,2.09129355,2125.9,2125.4,2.93433831]
[1770558675196,2.09129355,2125.8,2125.4,2.93433831]
[1770558675379,2.09129355,2125.9,2125.5,1.69705781]
[1770558676003,2.09129355,2125.8,2125.5,1.69705781]
[1770558676314,2.09129355,2125.9,2125.5,1.69705781]
[1770558676611,2.09129355,2125.9,2125.6,1.69705781]
[1770558676816,2.09129355,2125.8,2125.6,1.69705781]
[1770558676973,2.09129355,2125.9,2125.6,1.69705781]
[1770558677611,2.09129355,2125.8,2125.6,1.69705781]
[1770558677771,2.09129355,2125.9,2125.6,1.69815781]
[1770558678107,0.001,2125.7,2125.6,1.69815781]
[1770558679199,0.001,2125.7,2125.6,2.87429631]
[1770558680671,0.001,2126.0,2125.7,1.69705781]
[1770558680872,2.09129355,2125.9,2125.7,1.69705781]
[1770558681308,1.17573955,2126.4,2125.7,1.69705781]
[1770558682200,1.79440414,2126.2,2125.6,0.0011]
[1770558682498,1.79440414,2126.0,2125.6,0.0011]
[1770558682705,2.97037666,2125.9,2125.6,0.0011]
[1770558682889,1.79440414,2125.8,2125.6,0.0011]
[1770558683089,3.87669769,2125.8,2125.4,0.0011]
[1770558683395,2.08229355,2125.7,2125.4,0.0011]
[1770558683902,2.08229355,2125.6,2125.4,0.0011]
[1770558684102,2.08229355,2125.7,2125.4,0.0011]
[1770558684475,2.08229355,2125.6,2125.4,0.0011]
[1770558684675,2.08229355,2125.7,2125.4,0.0011]
[1770558685086,2.08229355,2125.6,2125.4,0.0011]
[1770558685301,2.08229355,2125.7,2125.4,0.0011]
[1770558685704,2.08229355,2125.6,2125.4,0.0011]
[1770558685874,2.08229355,2125.7,2125.4,0.0011]
[1770558686304,2.08229355,2125.6,2125.4,0.0011]
[1770558686503,2.08229355,2125.7,2125.4,0.0011]
[1770558686908,2.08229355,2125.6,2125.4,0.0011]
[1770558687080,2.08229355,2125.7,2125.4,0.0011]
[1770558687602,2.08229355,2125.6,2125.4,0.0011]
[1770558687902,2.08229355,2125.7,2125.4,0.0011]
[1770558688286,2.08229355,2125.6,2125.4,0.0011]
[1770558688488,2.08229355,2125.8,2125.4,0.0011]
[1770558688886,2.08229355,2125.7,2125.4,0.0011]
[1770558689075,2.08229355,2125.8,2125.4,0.0011]
[1770558689478,2.08229355,2125.7,2125.4,0.0011]
[1770558689680,2.08229355,2125.8,2125.4,0.0011]
[1770558690206,2.08229355,2125.7,2125.6,0.0011]
[1770558690507,2.08229355,2125.8,2125.6,0.0011]
[1770558690680,2.08229355,2125.7,2125.6,0.0011]
[1770558690880,2.08229355,2125.8,2125.6,0.0011]
[1770558691282,2.08229355,2125.7,2125.6,0.0011]
[1770558691501,2.08229355,2125.8,2125.6,0.0011]
[1770558691902,2.9703794,2125.9,2125.6,0.0011]
[1770558691903,2.08229355,2125.7,2125.6,0.0011]
[1770558692088,2.08229355,2125.8,2125.6,0.0011]
[1770558692496,2.08229355,2125.7,2125.6,0.0011]
[1770558692692,2.08229355,2125.8,2125.6,0.0011]
[1770558693103,2.08229355,2125.7,2125.6,0.0011]
[1770558693311,2.08229355,2125.8,2125.6,0.0011]
[1770558693721,2.08229355,2125.7,2125.6,0.0011]
[1770558693910,2.08229355,2125.8,2125.6,0.0011]
[1770558694290,2.08229355,2125.7,2125.6,0.0011]
[1770558694519,2.08229355,2125.8,2125.6,0.0011]
[1770558695012,2.08229355,2125.7,2125.6,0.0011]
[1770558695315,2.08229355,2125.8,2125.6,0.0011]
[1770558695814,2.97038255,2125.9,2125.6,0.0011]
[1770558695815,2.08229355,2125.7,2125.6,0.0011]
[1770558696016,2.08229355,2125.8,2125.6,0.0011]
[1770558696420,1.22359526,2126.2,2125.6,1.69815781]
[1770558696716,2.08229355,2126.1,2125.6,1.69815781]
[1770558697487,0.001,2126.2,2125.6,1.69815781]
[1770558697726,2.08329355,2126.2,2125.6,1.69815781]
[1770558698019,2.08329355,2126.2,2125.7,2.87314098]
[1770558698238,0.001,2126.2,2125.8,1.69705781]
[1770558698598,2.08329355,2126.2,2125.8,1.69705781]
[1770558699924,2.08329355,2126.2,2125.8,2.87308242]
[1770558700310,0.001,2126.2,2125.8,2.87308242]
[1770558700628,0.001,2126.2,2125.9,1.69705781]
[1770558700803,2.08329355,2126.2,2125.9,1.69705781]
[1770558701004,0.001,2126.2,2125.9,1.69705781]
[1770558701227,2.08329355,2126.2,2125.9,1.69705781]
[1770558701426,0.001,2126.2,2125.9,1.69705781]
[1770558702206,0.001,2126.2,2126.0,1.69705781]
[1770558702598,2.08329355,2126.2,2126.0,1.69705781]
[1770558703803,0.001,2126.2,2126.0,1.69705781]
[1770558704223,0.001,2126.2,2126.1,2.87291971]
[1770558704812,0.34150031,2126.7,2126.2,1.69705781]
[1770558705134,0.34150031,2126.7,2126.3,1.82092655]
[1770558705509,4.70041026,2127.5,2126.5,1.86551493]
[1770558705510,1.17513856,2127.5,2126.5,1.86551493]
[1770558705708,1.82550348,2127.4,2126.5,1.82092655]
[1770558705911,0.012,2127.6,2126.7,1.82092655]
[1770558706447,0.012,2127.6,2127.1,1.82092655]
[1770558707139,1.77875651,2127.5,2126.6,4.46357682]
[1770558707312,1.77875651,2127.3,2126.7,1.17552657]
[1770558707711,1.77875651,2127.3,2126.7,1.17552495]
[1770558708332,2.95395519,2127.3,2126.7,1.17552495]
[1770558708514,1.77875651,2127.3,2126.7,1.17552495]
[1770558708920,0.012,2127.6,2126.8,1.82092655]
[1770558709345,0.012,2127.6,2126.7,1.17552495]
[1770558709346,1.77875651,2127.5,2126.7,1.17552495]
[1770558709649,1.82550348,2127.5,2126.6,4.46354618]
[1770558710145,1.82550348,2127.5,2126.6,6.28447273]
[1770558710538,3.00064576,2127.5,2126.6,6.28447273]
[1770558711834,1.22188925,2127.5,2126.7,1.82092655]
[1770558712133,1.18707027,2127.6,2126.7,1.82092655]
[1770558712549,3.01257375,2127.6,2126.8,1.17547489]
[1770558712725,1.77875651,2127.5,2126.7,2.99644204]
[1770558713246,1.18707027,2127.6,2126.8,1.82092655]
[1770558713450,2.96582678,2127.6,2126.8,1.82092655]
[1770558714534,2.96582678,2127.6,2126.9,0.0011]
[1770558714738,0.001,2127.4,2126.9,2.99744617]
[1770558715853,0.001,2127.4,2126.9,1.82202655]
[1770558717655,1.77975651,2127.4,2126.9,0.0011]
[1770558717947,1.82550348,2127.3,2126.9,0.0011]
[1770558718734,2.95401036,2127.2,2126.9,0.0011]
[1770558718938,1.77875651,2127.1,2126.9,0.0011]
[1770558719138,1.77875651,2127.1,2126.2,1.82092655]
[1770558719328,1.77875651,2127.1,2126.2,2.99670839]
[1770558722553,2.95410746,2127.1,2126.3,1.82092655]
[1770558723060,2.95408382,2127.1,2126.3,1.82092655]
[1770558723734,1.17532731,2127.1,2126.3,1.82092655]
[1770558723935,1.77875651,2127.0,2126.0,3.286]
[1770558724264,1.77875651,2126.9,2126.0,3.286]
[1770558724442,1.77875651,2126.7,2126.0,3.286]
[1770558724755,1.77875651,2126.7,2125.8,1.17712744]
[1770558726758,2.95434195,2126.6,2126.5,0.0011]
[1770558726984,2.95434195,2126.6,2125.8,2.99805399]
[1770558727165,2.95434195,2126.6,2126.3,0.0011]
[1770558727763,1.17558544,2126.6,2126.3,0.0011]
[1770558731741,2.95434195,2126.6,2126.3,0.0011]
[1770558731940,1.77875651,2126.5,2126.3,0.0011]
[1770558732164,1.82550348,2126.5,2126.3,0.0011]
[1770558733041,0.04674697,2126.5,2126.3,0.0011]
[1770558733441,1.17569601,2126.4,2126.3,0.0011]
[1770558734268,1.17569601,2126.4,2125.8,1.76242578]
[1770558739153,0.04674697,2126.3,2125.8,1.76242578]
[1770558739357,1.22244298,2126.4,2125.8,1.76242578]
[1770558739695,5.04241609,2126.5,2126.0,0.0011]
[1770558739976,0.001,2126.4,2126.0,0.0011]
[1770558743646,1.78762975,2126.4,2126.0,0.0011]
[1770558744355,1.78662975,2126.2,2126.0,0.0011]
[1770558745170,1.78662975,2126.2,2125.8,0.0011]
[1770558746151,1.17591721,2126.0,2125.6,0.0011]
[1770558746357,2.96254696,2126.0,2125.6,0.0011]
[1770558746582,1.17591721,2126.0,2125.6,0.0011]
[1770558746890,1.17591721,2126.0,2125.6,1.77200321]
[1770558747057,1.17591721,2126.0,2125.6,0.0011]
[1770558747560,4.75023574,2126.1,2125.6,0.0011]
[1770558747561,1.22263101,2126.1,2125.6,0.0011]
[1770558747763,1.22263101,2126.1,2125.6,1.77200321]
[1770558748369,1.22263101,2126.1,2125.6,0.0011]
[1770558749356,1.17578283,2126.3,2125.7,1.77090321]
[1770558749682,2.96241258,2126.3,2125.6,1.77200321]
[1770558750383,1.17578283,2126.3,2125.7,1.77090321]
[1770558750685,1.2225298,2126.3,2125.7,1.77090321]
[1770558752187,1.2225298,2126.3,2125.8,0.0011]
[1770558752361,0.001,2126.2,2125.8,0.0011]
[1770558753781,1.78762975,2126.2,2125.8,0.0011]
[1770558754483,2.96343958,2126.2,2125.8,0.0011]
[1770558755063,1.17680983,2126.2,2125.8,0.0011]
[1770558758101,4.74975427,2126.3,2125.8,0.0011]
[1770558758275,1.17580983,2126.2,2125.8,1.77200321]
[1770558759098,1.17580983,2126.2,2125.8,0.0011]
[1770558760483,4.74975427,2126.3,2125.8,1.77200321]
[1770558760484,1.17579389,2126.3,2125.8,1.77200321]
[1770558762402,1.83337672,2126.2,2125.6,0.0011]
[1770558764600,1.78662975,2126.0,2125.6,0.0011]
[1770558764800,1.83337672,2126.0,2125.6,0.0011]
[1770558767377,1.17597252,2125.9,2125.6,0.0011]
[1770558769194,1.17690469,2126.1,2125.6,1.88753626]
[1770558769513,0.001,2126.1,2125.6,1.88753626]
[1770558772494,0.001,2126.1,2125.7,1.88643626]
[1770558777217,0.001,2126.1,2125.8,0.0011]
[1770558777419,0.001,2125.9,2125.8,0.0011]
[1770558781238,0.001,2125.9,2125.6,0.0011]
[1770558784840,0.001,2126.1,2125.6,0.0011]
[1770558785628,0.001,2126.1,2125.6,1.1772385]
[1770558785828,0.001,2126.1,2125.6,3.06367476]
[1770558788038,0.001,2126.1,2125.7,1.88643626]
[1770558789052,0.001,2126.1,2125.7,5.17443626]
[1770558789240,0.001,2126.1,2125.8,1.88643626]
[1770558789439,4.70131416,2127.1,2125.8,1.93102464]
[1770558789641,0.001,2127.0,2125.8,1.93212464]
[1770558789837,0.001,2127.0,2126.0,1.88643626]
[1770558790040,0.001,2127.0,2126.2,1.88643626]
[1770558790252,0.36123422,2127.2,2126.2,1.88643626]
[1770558790429,0.001,2127.1,2126.5,1.88643626]
[1770558791050,0.36123422,2127.2,2126.5,1.88643626]
[1770558791264,0.001,2127.1,2126.5,1.88643626]
[1770558791826,1.58324011,2127.2,2126.5,1.88643626]
[1770558791827,0.001,2127.0,2126.5,3.062026]
[1770558792061,0.001,2127.1,2126.6,1.88643626]
[1770558792719,0.001,2127.0,2126.4,3.288]
[1770558792920,0.001,2127.1,2126.4,6.3501277]
[1770558793346,0.001,2127.0,2126.4,6.3501277]
[1770558793554,0.001,2127.1,2126.4,6.3501277]
[1770558793926,0.001,2127.0,2126.4,6.35009525]
[1770558794128,0.001,2127.1,2126.4,6.35009525]
[1770558794554,1.53649113,2127.2,2126.4,6.35009525]
[1770558794555,0.001,2127.0,2126.4,6.35009525]
[1770558794761,0.001,2127.1,2126.4,6.35009525]
[1770558795254,0.001,2127.0,2126.4,6.35009525]
[1770558795456,0.001,2127.1,2126.4,6.35009525]
[1770558795755,0.001,2127.1,2126.5,1.93740637]
[1770558795958,0.001,2127.0,2126.6,1.93740637]
[1770558796153,0.001,2127.1,2126.6,1.93740637]
[1770558796559,0.001,2127.0,2126.6,1.93740637]
[1770558796771,0.001,2127.1,2126.6,1.93740637]
[1770558797248,0.001,2127.0,2126.6,1.93740637]
[1770558797444,0.001,2127.1,2126.6,1.93740637]
[1770558797763,0.001,2127.1,2126.6,3.11298938]
[1770558797946,0.001,2127.0,2126.7,1.93740637]
[1770558798147,0.001,2127.1,2126.7,1.93740637]
[1770558798561,0.001,2127.0,2126.7,1.93740637]
[1770558798876,0.001,2127.1,2126.7,1.93740637]
[1770558799379,0.001,2127.0,2126.8,1.93740637]
[1770558799558,0.001,2127.1,2126.8,1.93740637]
[1770558799958,0.001,2127.0,2126.8,1.93740637]
[1770558800159,0.001,2127.1,2126.8,1.93740637]
[1770558800550,0.001,2127.0,2126.8,1.93740637]
[1770558800746,0.001,2127.1,2126.8,1.93740637]
[1770558801150,0.001,2127.0,2126.8,1.93740637]
[1770558801376,0.001,2127.0,2126.4,3.288]
[1770558801377,1.94676768,2127.1,2126.4,3.288]
[1770558801567,0.001,2126.9,2126.4,3.288]
[1770558801768,0.001,2126.9,2126.4,6.4010864]
[1770558801954,0.001,2126.8,2126.4,6.4010864]
[1770558802475,0.001,2126.7,2126.4,6.4010864]
[1770558802772,0.001,2126.8,2126.4,5.22540637]
[1770558802956,1.90002071,2126.8,2126.1,1.17585766]
[1770558803161,0.001,2126.7,2126.1,1.17585766]
[1770558803554,0.001,2126.6,2126.1,1.17585766]
[1770558804054,1.17553016,2126.7,2126.1,1.17585766]
[1770558804055,0.001,2126.5,2126.1,1.17585766]
[1770558804261,0.001,2126.6,2126.1,1.17585766]
[1770558804555,0.001,2126.6,2126.2,1.93740637]